fUSD/lending_fUSD_20240521
["ID","MTS","AMOUNT","RATE_DAILY","PERIOD"]
[327682902,1716313862782,-500.0,0.00030958,6]
[327682903,1716313862793,-581.62,0.00030958,6]
[327682904,1716313862804,-818.21,0.00030958,6]
[327682905,1716313862814,-1476.86,0.00030958,6]
[327682906,1716313862825,-1607.16,0.00030958,6]
[327682907,1716313862836,-815.88,0.00030958,6]
[327682908,1716313862847,-1727.6,0.00030958,6]
[327682909,1716313862858,-625.11587836,0.00030958,6]
[327682910,1716313862870,-536.04,0.00030958,6]
[327682911,1716313862881,-500.0,0.00030958,6]
[327682912,1716313862893,-500.0,0.00030958,6]
[327682913,1716313862904,-8055.41,0.00030958,6]
[327682914,1716313862913,-500.0,0.00030958,6]
[327682915,1716313862922,-2760.01575287,0.00030958,6]
[327682916,1716313862937,-76.74424713,0.00030958,6]
[327682917,1716313862947,-630.95,0.00030958,6]
[327682918,1716313862957,-1020.55,0.00030958,6]
[327682919,1716313862966,-586.35,0.00030958,6]
[327682920,1716313862977,-500.0,0.00030958,6]
[327682921,1716313862990,-500.0,0.00030958,6]
[327682922,1716313862999,-414.13075287,0.00030958,6]
[327682923,1716313863012,-343.89924713,0.00030958,6]
[327682924,1716313863023,-1121.0,0.00030958,6]
[327682925,1716313863032,-500.0,0.00030958,6]
[327682926,1716313863042,-500.0,0.00030958,6]
[327682927,1716313863052,-1016.17,0.00030958,6]
[327682928,1716313863062,-195.69515287,0.00030958,6]
[327682929,1716313863074,-306.15484713,0.00030958,6]
[327682930,1716313863084,-1348.06,0.00030958,6]
[327682931,1716313863096,-655.31,0.00030958,6]
[327682932,1716313863105,-2519.04,0.00030958,6]
[327682933,1716313863113,-500.0,0.00030958,6]
[327682934,1716313863122,-500.0,0.00030958,6]
[327682935,1716313863131,-500.0,0.00030958,6]
[327682936,1716313863141,-678.59,0.00030958,6]
[327682937,1716313863150,-2475.49895287,0.00030958,6]
[327682939,1716313955502,172.92,0.00028905,120]
[327682940,1716314736161,-502.61344421,0.00013485,2]
[327682941,1716314945112,-300.0,0.00013327,2]
[327682942,1716314945135,-1214.6689213,0.00013328,2]
[327682943,1716314945156,-237.37139895,0.00013328,2]
[327682944,1716314945179,-2001.17311596,0.00013328,2]
[327682945,1716314945200,-207.45919939,0.00013328,2]
[327682946,1716314945222,-1064.16497992,0.00013328,2]
[327682947,1716314945244,-803.82734863,0.00013329,2]
[327682948,1716314945266,-535.88765417,0.00013329,2]
[327682949,1716314945288,-217.4354535,0.0001333,2]
[327682950,1716314945309,-155.0,0.00013331,2]
[327682951,1716314945329,-155.0,0.00013331,2]
[327682952,1716314945358,-423.50395095,0.00013332,2]
[327682953,1716314945378,-488.97987552,0.00013333,2]
[327682954,1716314945401,-10528.10044356,0.00013334,2]
[327682955,1716314945422,-3009.22259408,0.00013335,2]
[327682956,1716314945443,-18602.51406407,0.00013481,2]
[327682957,1716314952112,-204.67725318,0.00013326,2]
[327682958,1716314952132,-496.42246787,0.00013326,2]
[327682959,1716314953087,-38.30337407,0.00013326,2]
[327682960,1716314953108,-516.37241521,0.00013481,2]
[327682961,1716314954102,-7402.70496607,0.00013481,2]
[327682962,1716314955136,-3487.79649154,0.00013259,2]
[327682963,1716314964181,-4287.77934432,0.00013258,2]
[327682981,1716315032721,-0.07397879,0.00013258,2]
[327682982,1716315032733,-10939.87174054,0.00013258,2]
[327682983,1716315032742,-10419.56,0.00013483,2]
[327682984,1716315032752,-4991.41,0.00013483,6]
[327682985,1716315032761,-499.99,0.00013484,2]
[327682986,1716315032770,-818.37489611,0.00013783,2]
[327682987,1716315032780,-162.86909091,0.00013784,2]
[327682988,1716315032790,-167.48,0.00013973,2]
[327682989,1716315032799,-157.26,0.00013973,2]
[327682990,1716315032809,-1227.04758271,0.000165,2]
[327682991,1716315032818,-181.85,0.00016972,2]
[327682992,1716315032828,-19498.47414158,0.00016973,2]
[327682993,1716315032838,-5079.69634499,0.00017259,2]
[327682994,1716315032849,-1949.38,0.00017534,2]
[327682995,1716315032858,-162.86909089,0.00017915,2]
[327682998,1716315032868,-450.4,0.00018353,2]
[327683001,1716315032878,-158.34,0.00020312,2]
[327683004,1716315032888,-250.0,0.0002036,2]
[327683006,1716315032897,-158.34,0.00020408,2]
[327683009,1716315032906,-2483.35,0.00020452,2]
[327683011,1716315032916,-190.75,0.00020498,2]
[327683013,1716315032926,-158.34,0.00020504,2]
[327683015,1716315032935,-158.34,0.000206,2]
[327683017,1716315032944,-450.4,0.00020617,2]
[327683019,1716315032954,-158.34,0.00020696,2]
[327683021,1716315032963,-1000.0,0.00020753,2]
[327683023,1716315032973,-158.34,0.00020793,2]
[327683024,1716315032983,-10026.24791563,0.00020885,2]
[327683027,1716315032995,-1240.78981057,0.00020885,2]
[327683028,1716315033007,-1713.8922738,0.00020885,2]
[327683029,1716315033017,-158.34,0.00020889,2]
[327683030,1716315033027,-158.34,0.00020985,2]
[327683031,1716315033037,-368.0,0.00021,2]
[327683032,1716315033046,-156.97,0.00021043,2]
[327683033,1716315033057,-158.34,0.00021081,2]
[327683034,1716315033067,-158.34,0.00021177,2]
[327683035,1716315033076,-158.34,0.00021274,2]
[327683036,1716315033086,-158.34,0.0002137,2]
[327683037,1716315033097,-250.0,0.00021452,2]
[327683038,1716315033106,-162.86909089,0.00022046,2]
[327683039,1716315033116,-450.4,0.00022881,2]
[327683040,1716315033127,-2483.35,0.00023192,2]
[327683041,1716315033138,-1000.0,0.00023347,2]
[327683042,1716315033147,-170.55,0.00023367,2]
[327683043,1716315033157,-156.97,0.00023673,2]
[327683044,1716315033167,-180.0,0.0002423,2]
[327683045,1716315033176,-250.0,0.00024658,2]
[327683046,1716315033186,-450.4,0.00025145,2]
[327683047,1716315033195,-423.50395095,0.00025889,2]
[327683048,1716315033204,-155.84,0.0002589,2]
[327683049,1716315033213,-2483.35,0.00025932,2]
[327683050,1716315033223,-1000.0,0.00025941,2]
[327683051,1716315033232,-162.86909089,0.00026177,2]
[327683052,1716315033242,-156.97,0.00026303,2]
[327683053,1716315033251,-14898.75931743,0.00026492,2]
[327683054,1716315033260,-449.53,0.00026581,3]
[327683055,1716315033270,-8306.82,0.00026591,2]
[327683056,1716315033278,-19999.99,0.00026591,2]
[327683057,1716315033287,-1206.97,0.00026591,2]
[327683058,1716315033296,-29999.99,0.00026591,2]
[327683059,1716315033305,-34433.37196678,0.00027047,2]
[327683060,1716315033314,-29207.4914,0.00027147,2]
[327683061,1716315033324,-14898.75931736,0.00027149,2]
[327683062,1716315033333,-450.4,0.00027409,2]
[327683063,1716315033342,-157.26,0.00027641,2]
[327683064,1716315033352,-34433.37196676,0.00027642,2]
[327683065,1716315033361,-157.47,0.00027796,2]
[327683066,1716315033371,-14898.75931736,0.00027806,2]
[327683067,1716315033384,-34433.37196676,0.00028237,2]
[327683068,1716315033393,-158.63875315,0.00028295,2]
[327683069,1716315033403,-153.29266499,0.00028366,2]
[327683070,1716315033412,-153.35285371,0.00028397,2]
[327683071,1716315033424,-14898.75931736,0.00028463,2]
[327683072,1716315033433,-1214.6689213,0.00028533,2]
[327683073,1716315033442,-488.97987552,0.00028534,2]
[327683074,1716315033451,-1000.0,0.00028535,2]
[327683075,1716315033465,-153.42116949,0.00028553,2]
[327683076,1716315033475,-21152.04844151,0.00028833,2]
[327683077,1716315033487,-5855.66818691,0.00028833,2]
[327683078,1716315033498,-7425.65533834,0.00028833,2]
[327683079,1716315033507,-156.97,0.00028934,2]
[327683080,1716315033517,-1543.88774565,0.00028998,2]
[327683081,1716315033529,-5789.32562264,0.00028998,2]
[327683082,1716315033539,-14898.75931736,0.0002912,2]
[327683083,1716315033550,-153.35285371,0.00029148,2]
[327683084,1716315033560,-450.4,0.00029673,2]
[327683085,1716315033569,-14169.97516125,0.00029776,2]
[327683086,1716315033581,-728.78415611,0.00029776,2]
[327683087,1716315033590,-158.59226136,0.0002979,2]
[327683088,1716315033600,-600.0,0.000301,15]
[327683089,1716315033609,-925.4028204,0.00030111,4]
[327683090,1716315033619,-154.74831959,0.00030244,7]
[327683091,1716315033628,-153.75029672,0.00030305,2]
[327683092,1716315033638,-162.86909089,0.00030308,2]
[327683093,1716315033648,-322.03836439,0.00030308,2]
[327683094,1716315033658,-173.1639208,0.0003031,2]
[327683095,1716315033668,-151.78572692,0.0003031,2]
[327683096,1716315033678,-171.52880002,0.0003031,2]
[327683097,1716315033688,-340.963269,0.0003031,2]
[327683098,1716315033697,-200.01599054,0.0003031,2]
[327683099,1716315033707,-173.3787007,0.0003031,2]
[327683100,1716315033716,-2064.65952222,0.0003031,2]
[327683101,1716315033729,-1164.46337778,0.0003031,2]
[327683102,1716315033739,-196.98938459,0.00030397,2]
[327683103,1716315033748,-635.97483763,0.00030398,4]
[327683104,1716315033760,-1042.16772,0.00030398,4]
[327683105,1716315033771,-236.30857912,0.00030398,4]
[327683106,1716315033781,-150.67,0.000304,2]
[327683107,1716315033791,-922.53142088,0.00030404,10]
[327683108,1716315033803,-1486.7837916,0.00030404,10]
[327683109,1716315033854,-278968.016887,0.00030404,10]
[327683110,1716315033864,-234.29329078,0.00030405,4]
[327683111,1716315033874,-662.03486811,0.00030405,4]
[327683112,1716315033885,-1148.49325432,0.00030405,4]
[327683113,1716315033895,-238.87373064,0.00030405,4]
[327683114,1716315033904,-238.80480051,0.00030405,4]
[327683115,1716315033914,-3738.44322338,0.00030405,4]
[327683116,1716315033924,-235.95016862,0.00030405,4]
[327683117,1716315033933,-330.40617114,0.00030405,4]
[327683118,1716315033943,-536.71822129,0.00030405,4]
[327683119,1716315033953,-777.71557511,0.00030405,4]
[327683120,1716315033962,-185.61484288,0.00030405,4]
[327683121,1716315033972,-4000.0,0.00030405,4]
[327683122,1716315033982,-291.22757195,0.00030405,4]
[327683123,1716315033991,-9974.61224222,0.00030406,4]
[327683124,1716315034003,-626.85191041,0.00030406,4]
[327683125,1716315034015,-18717.84062769,0.00030406,4]
[327683126,1716315034027,-4427.30363913,0.00030406,4]
[327683127,1716315038407,-714.662132,0.00029428,2]
[327683153,1716315038896,-3356.57404761,0.00029428,2]
[327683154,1716315038951,-3389.96530916,0.00029428,2]
[327683155,1716315038963,-922.39733341,0.00029428,2]
[327683156,1716315038975,-354.99070211,0.00029428,2]
[327683157,1716315038986,-18314.11246586,0.00029428,2]
[327683158,1716315038997,-308.66866659,0.00029428,2]
[327683159,1716315039009,-3564.900492,0.00029428,2]
[327683160,1716315039020,-2371.12989906,0.00029428,2]
[327683161,1716315039032,-500.0,0.00029428,2]
[327683162,1716315039393,-369.834759,0.00029428,2]
[327683191,1716315040662,-1667.168689,0.00013191,2]
[327683193,1716315040674,-266.13615996,0.00029428,2]
[327683194,1716315040683,-15542.29036436,0.00030023,2]
[327683195,1716315040694,-3268.0669238,0.00030023,2]
[327683196,1716315040708,-915.17308127,0.00030023,2]
[327683197,1716315040720,-14707.84159733,0.00030023,2]
[327683198,1716315040730,-41161.59026593,0.00030111,2]
[327683199,1716315040739,-500.0,0.00030403,2]
[327683200,1716315040748,-487.70116253,0.00030403,2]
[327683201,1716315040758,-556.27374913,0.00030403,2]
[327683202,1716315040767,-500.0,0.00030403,2]
[327683203,1716315040777,-500.0,0.00030403,2]
[327683204,1716315040786,-500.0,0.00030403,2]
[327683205,1716315040795,-500.0,0.00030403,2]
[327683206,1716315040804,-118.43526728,0.00030406,4]
[327683207,1716315040814,-5900.0,0.00030408,10]
[327683208,1716315040823,-656.59256229,0.00030408,4]
[327683209,1716315040832,-19626.96507151,0.00030409,2]
[327683210,1716315040842,-973.4129822,0.00030409,4]
[327683211,1716315040852,-500.0,0.00030409,2]
[327683212,1716315040861,-309.48618825,0.00030409,2]
[327683213,1716315040872,-483.54907483,0.00030409,2]
[327683214,1716315040881,-386.89278365,0.00030409,2]
[327683215,1716315040891,-443.78571533,0.00030409,2]
[327683216,1716315040901,-439.70954514,0.00030409,2]
[327683217,1716315040911,-513.75905445,0.00030409,2]
[327683218,1716315040920,-445.76665903,0.0003041,4]
[327683219,1716315040931,-500.0,0.0003041,6]
[327683220,1716315040941,-500.0,0.0003041,6]
[327683221,1716315040951,-500.0,0.0003041,6]
[327683222,1716315040960,-500.0,0.0003041,6]
[327683223,1716315040970,-500.0,0.0003041,6]
[327683224,1716315040981,-563.09767881,0.0003041,6]
[327683225,1716315040991,-254.66749283,0.0003041,6]
[327683226,1716315041001,-505.75602951,0.0003041,6]
[327683227,1716315041010,-500.0,0.0003041,6]
[327683228,1716315041020,-696.87,0.0003041,6]
[327683229,1716315041031,-503.45,0.0003041,6]
[327683230,1716315041040,-500.0,0.0003041,6]
[327683232,1716315041050,-500.0,0.0003041,6]
[327683234,1716315041059,-500.0,0.0003041,6]
[327683236,1716315041069,-500.0,0.0003041,6]
[327683238,1716315041078,-500.0,0.0003041,6]
[327683240,1716315041087,-500.0,0.0003041,6]
[327683242,1716315041097,-500.0,0.0003041,6]
[327683244,1716315041107,-500.0,0.0003041,6]
[327683246,1716315041116,-500.0,0.0003041,6]
[327683248,1716315041125,-500.0,0.0003041,6]
[327683250,1716315041134,-546.71,0.0003041,6]
[327683252,1716315041144,-508.3,0.0003041,6]
[327683254,1716315041154,-634.84,0.0003041,6]
[327683256,1716315041164,-500.0,0.0003041,6]
[327683258,1716315041174,-500.0,0.0003041,6]
[327683260,1716315041183,-934.36,0.0003041,6]
[327683262,1716315041193,-500.0,0.0003041,6]
[327683264,1716315041203,-500.0,0.0003041,6]
[327683266,1716315041214,-500.0,0.0003041,6]
[327683268,1716315041224,-500.0,0.0003041,6]
[327683270,1716315041233,-500.0,0.0003041,6]
[327683272,1716315041244,-500.0,0.0003041,6]
[327683274,1716315041255,-500.0,0.0003041,6]
[327683276,1716315041265,-500.0,0.0003041,6]
[327683277,1716315041275,-500.0,0.0003041,6]
[327683278,1716315041285,-551.12,0.0003041,6]
[327683279,1716315041296,-500.0,0.0003041,6]
[327683280,1716315041306,-500.0,0.0003041,6]
[327683281,1716315041316,-500.0,0.0003041,6]
[327683282,1716315041326,-500.0,0.0003041,6]
[327683283,1716315041336,-504.3213866,0.0003041,6]
[327683284,1716315041346,-500.0,0.0003041,6]
[327683285,1716315041356,-560.96,0.0003041,6]
[327683286,1716315041366,-500.0,0.0003041,6]
[327683287,1716315041376,-500.0,0.0003041,6]
[327683288,1716315041392,-500.0,0.0003041,6]
[327683289,1716315041403,-500.0,0.0003041,6]
[327683290,1716315041412,-500.0,0.0003041,6]
[327683291,1716315041424,-500.0,0.0003041,6]
[327683292,1716315041433,-783.78,0.0003041,6]
[327683293,1716315041443,-500.0,0.0003041,6]
[327683294,1716315041453,-500.0,0.0003041,6]
[327683295,1716315041464,-517.91,0.0003041,6]
[327683296,1716315041476,-575.81,0.0003041,6]
[327683297,1716315041487,-500.0,0.0003041,6]
[327683298,1716315041497,-500.0,0.0003041,6]
[327683299,1716315041507,-500.0,0.0003041,6]
[327683300,1716315041517,-567.71,0.0003041,6]
[327683301,1716315041527,-500.0,0.0003041,6]
[327683302,1716315041538,-500.0,0.0003041,6]
[327683303,1716315041548,-500.0,0.0003041,6]
[327683304,1716315041558,-500.0,0.0003041,6]
[327683305,1716315041568,-500.0,0.0003041,6]
[327683306,1716315041578,-500.0,0.0003041,6]
[327683307,1716315041588,-567.38,0.0003041,6]
[327683308,1716315041597,-500.0,0.0003041,6]
[327683309,1716315041607,-546.92,0.0003041,6]
[327683310,1716315041617,-731.47,0.0003041,6]
[327683311,1716315041627,-500.0,0.0003041,6]
[327683312,1716315041636,-500.0,0.0003041,6]
[327683313,1716315041646,-500.0,0.0003041,6]
[327683314,1716315041656,-500.0,0.0003041,6]
[327683315,1716315041666,-500.0,0.0003041,6]
[327683316,1716315041676,-500.0,0.0003041,6]
[327683317,1716315041686,-895.68,0.0003041,6]
[327683318,1716315041696,-500.0,0.0003041,6]
[327683319,1716315041706,-567.05,0.0003041,6]
[327683320,1716315041717,-500.0,0.0003041,6]
[327683321,1716315041727,-500.0,0.0003041,6]
[327683322,1716315041738,-500.0,0.0003041,6]
[327683323,1716315041748,-500.0,0.0003041,6]
[327683324,1716315041759,-695.09,0.0003041,6]
[327683325,1716315041769,-500.0,0.0003041,6]
[327683326,1716315041779,-500.0,0.0003041,6]
[327683327,1716315041789,-803.74,0.0003041,6]
[327683328,1716315041799,-500.0,0.0003041,6]
[327683329,1716315041809,-500.0,0.0003041,6]
[327683330,1716315041819,-169.11154535,0.0003041,6]
[327683331,1716315041828,-550.58,0.0003041,6]
[327683332,1716315041838,-500.0,0.0003041,6]
[327683333,1716315041848,-1324.46,0.0003041,6]
[327683334,1716315041857,-500.0,0.0003041,6]
[327683335,1716315041867,-500.0,0.0003041,6]
[327683336,1716315041877,-505.05126809,0.0003041,2]
[327683337,1716315041887,-522.35424024,0.0003041,6]
[327683338,1716315041898,-508.92,0.0003041,6]
[327683339,1716315041907,-500.0,0.0003041,6]
[327683340,1716315041918,-1127.04,0.0003041,6]
[327683341,1716315041928,-500.0,0.0003041,6]
[327683342,1716315041938,-500.0,0.0003041,6]
[327683343,1716315041947,-500.0,0.0003041,6]
[327683344,1716315041958,-553.6,0.0003041,6]
[327683345,1716315041967,-500.0,0.0003041,6]
[327683346,1716315041977,-500.0,0.0003041,6]
[327683347,1716315041987,-508.69,0.0003041,6]
[327683348,1716315041997,-500.0,0.0003041,6]
[327683349,1716315042007,-500.0,0.0003041,6]
[327683350,1716315042017,-500.0,0.0003041,6]
[327683351,1716315042028,-854.72,0.0003041,6]
[327683352,1716315042038,-513.98,0.0003041,6]
[327683353,1716315042048,-500.0,0.0003041,6]
[327683354,1716315042058,-500.0,0.0003041,6]
[327683355,1716315042068,-500.0,0.0003041,6]
[327683356,1716315042078,-736.71,0.0003041,6]
[327683357,1716315042088,-500.0,0.0003041,6]
[327683358,1716315042099,-552.08,0.0003041,6]
[327683359,1716315042108,-500.0,0.0003041,6]
[327683360,1716315042118,-500.0,0.0003041,6]
[327683361,1716315042129,-793.61,0.0003041,6]
[327683362,1716315042140,-500.0,0.0003041,6]
[327683363,1716315042150,-500.0,0.0003041,6]
[327683364,1716315042160,-513.06,0.0003041,6]
[327683365,1716315042170,-907.61,0.0003041,6]
[327683366,1716315042181,-573.4,0.0003041,6]
[327683367,1716315042190,-963.1,0.0003041,6]
[327683368,1716315042200,-500.0,0.0003041,6]
[327683369,1716315042210,-725.45,0.0003041,6]
[327683370,1716315042220,-500.0,0.0003041,6]
[327683371,1716315042230,-500.0,0.0003041,6]
[327683372,1716315042239,-500.0,0.0003041,6]
[327683373,1716315042249,-500.0,0.0003041,6]
[327683374,1716315042260,-500.0,0.0003041,6]
[327683375,1716315042270,-636.84,0.0003041,6]
[327683376,1716315042281,-500.0,0.0003041,6]
[327683377,1716315042291,-1554.02,0.0003041,6]
[327683378,1716315042301,-500.0,0.0003041,6]
[327683379,1716315042310,-448.244857,0.0003041,6]
[327683380,1716315042320,-500.0,0.0003041,6]
[327683381,1716315042330,-561.59,0.0003041,6]
[327683382,1716315042341,-500.0,0.0003041,6]
[327683383,1716315042350,-506.94,0.0003041,6]
[327683384,1716315042360,-576.36983582,0.0003041,6]
[327683385,1716315042370,-1320.38,0.0003041,6]
[327683386,1716315042380,-500.0,0.0003041,6]
[327683387,1716315042395,-500.0,0.0003041,6]
[327683388,1716315042405,-500.0,0.0003041,6]
[327683389,1716315042415,-540.72,0.0003041,6]
[327683390,1716315042426,-500.0,0.0003041,6]
[327683391,1716315042436,-548.73,0.0003041,6]
[327683392,1716315042446,-500.0,0.0003041,6]
[327683393,1716315042456,-1068.62,0.0003041,6]
[327683394,1716315042468,-521.67,0.0003041,6]
[327683395,1716315042481,-603.82,0.0003041,6]
[327683396,1716315042491,-500.0,0.0003041,6]
[327683397,1716315042501,-1280.32,0.0003041,6]
[327683398,1716315042511,-500.0,0.0003041,6]
[327683399,1716315042521,-500.0,0.0003041,6]
[327683400,1716315042531,-506.78784817,0.0003041,6]
[327683401,1716315042541,-607.84,0.0003041,6]
[327683402,1716315042551,-547.54,0.0003041,6]
[327683403,1716315042562,-580.61,0.0003041,6]
[327683404,1716315042571,-500.0,0.0003041,6]
[327683405,1716315042582,-763.1,0.0003041,6]
[327683406,1716315042592,-500.0,0.0003041,6]
[327683407,1716315042602,-500.0,0.0003041,6]
[327683408,1716315042612,-500.0,0.0003041,6]
[327683409,1716315042622,-572.3,0.0003041,6]
[327683410,1716315042632,-500.0,0.0003041,6]
[327683411,1716315042642,-732.1,0.0003041,6]
[327683412,1716315042652,-500.0,0.0003041,6]
[327683413,1716315042662,-842.07,0.0003041,6]
[327683414,1716315042672,-536.46,0.0003041,6]
[327683415,1716315042683,-814.64,0.0003041,6]
[327683416,1716315042693,-500.0,0.0003041,6]
[327683417,1716315042702,-500.0,0.0003041,6]
[327683418,1716315042712,-500.0,0.0003041,6]
[327683419,1716315042722,-500.0,0.0003041,6]
[327683420,1716315042732,-506.08,0.0003041,6]
[327683421,1716315042743,-500.0,0.0003041,6]
[327683422,1716315042753,-866.48,0.0003041,6]
[327683423,1716315042763,-500.0,0.0003041,6]
[327683424,1716315042773,-617.97,0.0003041,6]
[327683425,1716315042785,-581.56,0.0003041,6]
[327683426,1716315042795,-500.0,0.0003041,6]
[327683427,1716315042805,-500.0,0.0003041,6]
[327683428,1716315042815,-1079.5,0.0003041,6]
[327683429,1716315042825,-500.0,0.0003041,6]
[327683430,1716315042835,-500.0,0.0003041,6]
[327683431,1716315042846,-626.88,0.0003041,6]
[327683432,1716315042856,-500.0,0.0003041,6]
[327683433,1716315042866,-500.0,0.0003041,6]
[327683434,1716315042877,-500.0,0.0003041,6]
[327683435,1716315042887,-500.0,0.0003041,6]
[327683436,1716315042897,-1512.56,0.0003041,6]
[327683437,1716315042907,-176.51970088,0.0003041,6]
[327683438,1716315042917,-816.65,0.0003041,6]
[327683439,1716315042929,-965.24,0.0003041,6]
[327683440,1716315042939,-500.0,0.0003041,6]
[327683441,1716315042949,-500.0,0.0003041,6]
[327683442,1716315042959,-552.93,0.0003041,6]
[327683443,1716315042969,-500.0,0.0003041,6]
[327683444,1716315042980,-500.0,0.0003041,6]
[327683445,1716315042990,-991.71,0.0003041,6]
[327683446,1716315043000,-500.0,0.0003041,6]
[327683447,1716315043010,-678.27,0.0003041,6]
[327683448,1716315043020,-555.5,0.0003041,6]
[327683449,1716315043031,-500.0,0.0003041,6]
[327683450,1716315043040,-119.24047969,0.0003041,7]
[327683454,1716315043620,-31.75952031,0.0003041,7]
[327683455,1716315043630,-500.0,0.0003041,6]
[327683456,1716315043640,-151.0,0.0003041,7]
[327683457,1716315043650,-151.0,0.0003041,7]
[327683458,1716315043659,-500.0,0.0003041,6]
[327683459,1716315043669,-500.0,0.0003041,6]
[327683460,1716315043679,-337.67177747,0.0003041,6]
[327683461,1716315043692,-162.32822253,0.0003041,6]
[327683462,1716315043701,-500.0,0.0003041,6]
[327683463,1716315043712,-500.0,0.0003041,6]
[327683464,1716315043722,-573.9,0.0003041,6]
[327683465,1716315043732,-536.44,0.0003041,6]
[327683466,1716315043742,-121.08278521,0.0003041,6]
[327683467,1716315043754,-378.91721479,0.0003041,6]
[327683468,1716315043764,-870.73,0.0003041,6]
[327683469,1716315043774,-500.0,0.0003041,6]
[327683470,1716315043784,-500.0,0.0003041,6]
[327683471,1716315043794,-500.0,0.0003041,6]
[327683472,1716315043804,-500.0,0.0003041,6]
[327683473,1716315043814,-121.82775364,0.0003041,6]
[327683474,1716315043874,-378.17224636,0.0003041,6]
[327683475,1716315043884,-704.83,0.0003041,6]
[327683476,1716315043893,-15.89776364,0.0003041,6]
[327683477,1716315044327,-754.01223636,0.0003041,6]
[327683478,1716315044337,-601.39,0.0003041,6]
[327683479,1716315044347,-500.0,0.0003041,6]
[327683480,1716315044357,-89.46687685,0.0003041,6]
[327683481,1716315044369,-542.00088822,0.0003041,6]
[327683482,1716315044381,-350.24223493,0.0003041,6]
[327683483,1716315044395,-52.67514606,0.0003041,6]
[327683484,1716315044407,-447.32485394,0.0003041,6]
[327683485,1716315044417,-516.05,0.0003041,6]
[327683486,1716315044428,-500.0,0.0003041,6]
[327683488,1716315044438,-500.0,0.0003041,6]
[327683490,1716315044448,-500.0,0.0003041,6]
[327683491,1716315044458,-510.06665504,0.0003041,6]
[327683492,1716315044470,-927.52,0.0003041,6]
[327683493,1716315044480,-500.0,0.0003041,6]
[327683494,1716315044490,-500.0,0.0003041,6]
[327683495,1716315044500,-1162.6,0.0003041,6]
[327683496,1716315044510,-561.66,0.0003041,6]
[327683497,1716315044520,-500.0,0.0003041,6]
[327683498,1716315044530,-500.0,0.0003041,6]
[327683499,1716315044540,-500.0,0.0003041,6]
[327683500,1716315044550,-1229.26,0.0003041,6]
[327683501,1716315044561,-641.34,0.0003041,6]
[327683502,1716315044571,-1111.59,0.0003041,6]
[327683503,1716315044582,-500.0,0.0003041,6]
[327683504,1716315044592,-500.0,0.0003041,6]
[327683505,1716315044602,-500.0,0.0003041,6]
[327683506,1716315044612,-645.0508049,0.0003041,6]
[327683507,1716315044622,-500.0,0.0003041,6]
[327683508,1716315044632,-500.0,0.0003041,6]
[327683509,1716315044642,-500.0,0.0003041,6]
[327683510,1716315044652,-500.0,0.0003041,6]
[327683511,1716315044661,-733.94,0.0003041,6]
[327683512,1716315044671,-1025.91,0.0003041,6]
[327683513,1716315044682,-500.0,0.0003041,6]
[327683514,1716315044691,-500.0,0.0003041,6]
[327683515,1716315044699,-500.0,0.0003041,6]
[327683516,1716315044709,-150.0,0.0003041,6]
[327683517,1716315044718,-506.16721346,0.0003041,6]
[327683518,1716315044728,-746.96,0.0003041,6]
[327683519,1716315044738,-500.0,0.0003041,6]